fUSD/lending_fUSD_20260319
["ID","MTS","AMOUNT","RATE_DAILY","PERIOD"]
[408597395,1773915445650,500.0,8.822e-05,2]
[408597396,1773915446250,500.0,8.822e-05,2]
[408597397,1773915447210,250.0,8.822e-05,2]
[408597398,1773915447811,250.0,8.822e-05,2]
[408597399,1773915448466,250.0,8.822e-05,2]
[408597400,1773915449072,-3584.40316229,8.822e-05,2]
[408597401,1773915449100,-282.59450799,8.822e-05,2]
[408597402,1773915449109,-4717.41549201,8.822e-05,2]
[408597403,1773915449142,-5000.01,8.822e-05,2]
[408597404,1773915450086,-2062.46825617,8.822e-05,2]
[408597405,1773915450124,-10000.01,8.822e-05,2]
[408597406,1773915450263,-10000.01,8.822e-05,2]
[408597407,1773915450362,-10000.01,8.822e-05,2]
[408597408,1773915450465,-10000.01,8.822e-05,2]
[408597409,1773915450579,-10000.01,8.822e-05,2]
[408597410,1773915450708,-10000.01,8.822e-05,2]
[408597411,1773915451816,-5000.01,8.822e-05,2]
[408597412,1773915451832,-5000.01,8.822e-05,2]
[408597413,1773915451865,-5000.01,8.822e-05,2]
[408597414,1773915451893,-10000.01,8.822e-05,2]
[408597415,1773915451972,-5000.01,8.822e-05,2]
[408597416,1773915451995,-10000.01,8.822e-05,2]
[408597417,1773915452098,-5000.01,8.822e-05,2]
[408597418,1773915457488,500.0,7.965e-05,2]
[408597419,1773915458022,203.45251981,8.822e-05,2]
[408597420,1773915459909,151.0,8.822e-05,2]
[408597421,1773915460996,151.0,8.822e-05,2]
[408597422,1773915461596,151.0,8.822e-05,2]
[408597423,1773915462369,151.0,8.822e-05,2]
[408597424,1773915462835,151.0,8.822e-05,2]
[408597425,1773915463446,151.0,8.822e-05,2]
[408597426,1773915464059,151.0,8.822e-05,2]
[408597427,1773915464674,151.0,8.822e-05,2]
[408597428,1773915464965,669.13395939,8.822e-05,2]
[408597429,1773915465320,225.91421318,8.822e-05,2]
[408597430,1773915468311,-7193.50930762,8.822e-05,2]
[408597431,1773915468347,-10000.01,8.822e-05,2]
[408597432,1773915468440,-10000.01,8.822e-05,2]
[408597433,1773915468556,-10000.01,8.822e-05,2]
[408597434,1773915468660,-10000.01,8.822e-05,2]
[408597435,1773915474189,-10000.01,8.822e-05,2]
[408597436,1773915474288,-10000.01,8.822e-05,2]
[408597437,1773915474494,-10000.01,8.822e-05,2]
[408597438,1773915474642,-10000.01,8.822e-05,2]
[408597439,1773915474761,-10000.01,8.822e-05,2]
[408597440,1773915484107,5000.01,8.778e-05,2]
[408597441,1773915487609,157.0,8.822e-05,3]
[408597442,1773915507480,172.0,4.5e-07,2]
[408597444,1773915610784,178.0,4.5e-07,3]
[408597445,1773915611036,178.0,2.556e-05,3]
[408597446,1773915611282,178.0,5.066e-05,3]
[408597447,1773915611516,178.0,7.577e-05,3]
[408597448,1773915905217,150.0,4.5e-07,3]
[408597449,1773915905465,150.0,2.695e-05,3]
[408597450,1773915905918,150.0,5.345e-05,3]
[408597451,1773915906342,150.0,7.995e-05,3]
[408597454,1773916006136,-239.28707604,7.806e-05,2]
[408597456,1773916145075,-116.44760522,7.806e-05,2]
[408597457,1773916145097,-1200.0,7.806e-05,2]
[408597458,1773916145117,-150.0,7.806e-05,2]
[408597459,1773916145136,-300.0,7.806e-05,2]
[408597460,1773916145158,-300.0,7.806e-05,2]
[408597461,1773916145179,-3163.01271478,7.807e-05,2]
[408597462,1773916205011,151.0,4.5e-07,3]
[408597463,1773916205240,151.0,3.452e-05,3]
[408597464,1773916205495,151.0,6.859e-05,3]
[408597470,1773916231439,-1200.0,7.806e-05,2]
[408597471,1773916231449,-150.0,7.806e-05,2]
[408597472,1773916231458,-216.0,7.806e-05,2]
[408597473,1773916231468,-300.0,7.806e-05,2]
[408597474,1773916231478,-309922.40728522,7.807e-05,2]
[408597475,1773916231488,-12834.233394,7.945e-05,2]
[408597476,1773916231497,-15853.573541,8.178e-05,2]
[408597477,1773916231507,-1970.0,8.219e-05,2]
[408597478,1773916231516,-788.74,8.219e-05,2]
[408597479,1773916231525,-166.66,8.365e-05,2]
[408597480,1773916231534,-168.0,8.477e-05,2]
[408597481,1773916231543,-768.0,8.485e-05,2]
[408597482,1773916231553,-150.99,8.485e-05,2]
[408597483,1773916231562,-328.89,8.485e-05,2]
[408597484,1773916231571,-9999.99,8.485e-05,2]
[408597485,1773916231580,-27488.16029576,8.485e-05,2]
[408597486,1773916231596,-517.41970424,8.485e-05,2]
[408597487,1773916231607,-82.67496576,8.485e-05,2]
[408597489,1773916231637,-1180.75503424,8.485e-05,2]
[408597490,1773916231647,-298.66496576,8.485e-05,2]
[408597491,1773916231663,-201.32503424,8.485e-05,2]
[408597492,1773916231673,-3168.66772721,8.504e-05,2]
[408597496,1773916237397,-531.13294994,8.504e-05,2]
[408597497,1773916237408,-477.77232285,8.504e-05,2]
[408597498,1773916237418,-162.353,8.504e-05,2]
[408597499,1773916237427,-369.0,8.533e-05,2]
[408597500,1773916237436,-1680.0,8.586e-05,2]
[408597501,1773916237445,-255.0,8.586e-05,2]
[408597502,1773916237455,-420.0,8.586e-05,2]
[408597503,1773916237464,-250.0,8.586e-05,2]
[408597504,1773916237474,-5000.0,8.586e-05,2]
[408597505,1773916237484,-250.0,8.586e-05,2]
[408597506,1773916237493,-5000.0,8.586e-05,2]
[408597507,1773916237503,-5000.0,8.587e-05,2]
[408597508,1773916237513,-5000.0,8.587e-05,2]
[408597509,1773916237523,-863.22677501,8.587e-05,2]
[408597510,1773916237532,-193.0,8.587e-05,2]
[408597511,1773916237542,-250.0,8.587e-05,2]
[408597512,1773916237552,-9999.99,8.587e-05,2]
[408597513,1773916237561,-1188.97,8.587e-05,2]
[408597514,1773916237570,-2994.45,8.587e-05,2]
[408597515,1773916237580,-150.99,8.587e-05,2]
[408597516,1773916237593,-5363.51,8.587e-05,2]
[408597517,1773916237602,-545.11,8.587e-05,2]
[408597518,1773916237612,-999.99,8.587e-05,2]
[408597519,1773916237622,-9999.99,8.587e-05,2]
[408597520,1773916237632,-1000.0,8.605e-05,2]
[408597521,1773916237642,-1000.0,8.608e-05,2]
[408597522,1773916237651,-166.66,8.641e-05,2]
[408597523,1773916237661,-9999.99,8.641e-05,2]
[408597524,1773916237672,-29759.28,8.641e-05,2]
[408597525,1773916237681,-79311.07,8.641e-05,2]
[408597526,1773916237690,-299.99,8.641e-05,2]
[408597527,1773916237699,-9456.43,8.641e-05,2]
[408597528,1773916237708,-500.0,8.653e-05,2]
[408597529,1773916237718,-500.0,8.676e-05,2]
[408597531,1773916237727,-344.73872795,8.677e-05,2]
[408597533,1773916237736,-500.0,8.677e-05,2]
[408597535,1773916237746,-533.18932817,8.677e-05,2]
[408597536,1773916237756,-13082.7486023,8.678e-05,2]
[408597537,1773916237767,-12629.72247294,8.678e-05,2]
[408597540,1773916237806,-841.40074918,8.678e-05,2]
[408597541,1773916237818,-351.02034675,8.678e-05,2]
[408597542,1773916237836,-1128.25873982,8.678e-05,2]
[408597543,1773916237848,-2471966.84908901,8.678e-05,2]
[408597544,1773916237857,-151.0,8.678e-05,2]
[408597545,1773916237866,-1137.54686086,8.678e-05,2]
[408597546,1773916237876,-151.0,8.678e-05,2]
[408597547,1773916237886,-922.0,8.682e-05,2]
[408597548,1773916237895,-500.0,8.692e-05,2]
[408597549,1773916237904,-8565.75555911,8.692e-05,2]
[408597550,1773916237913,-1280.88388878,8.692e-05,2]
[408597551,1773916237926,-250.0,8.692e-05,2]
[408597552,1773916237935,-250.0,8.692e-05,2]
[408597553,1773916237945,-250.0,8.692e-05,2]
[408597554,1773916237954,-250.0,8.692e-05,2]
[408597555,1773916237964,-250.0,8.692e-05,2]
[408597556,1773916237973,-250.0,8.692e-05,2]
[408597557,1773916237982,-250.0,8.692e-05,2]
[408597558,1773916237991,-250.0,8.692e-05,2]
[408597559,1773916238001,-250.0,8.692e-05,2]
[408597560,1773916238011,-250.0,8.692e-05,2]
[408597561,1773916238020,-250.0,8.692e-05,2]
[408597562,1773916238030,-295.82407261,8.692e-05,2]
[408597563,1773916238039,-250.0,8.692e-05,2]
[408597564,1773916238048,-250.0,8.692e-05,2]
[408597565,1773916238057,-373.8483694,8.692e-05,2]
[408597566,1773916238066,-669.13395939,8.692e-05,2]
[408597567,1773916238076,-151.0,8.692e-05,2]
[408597568,1773916238085,-500.0,8.703e-05,2]
[408597569,1773916238095,-500.0,8.703e-05,2]
[408597570,1773916238105,-500.0,8.703e-05,2]
[408597571,1773916238114,-500.0,8.703e-05,2]
[408597572,1773916238124,-500.0,8.703e-05,2]
[408597573,1773916238134,-500.0,8.703e-05,2]
[408597574,1773916238143,-150.0,8.708e-05,2]
[408597575,1773916238153,-151.0,8.722e-05,2]
[408597576,1773916238163,-6665.30790525,8.722e-05,2]
[408597577,1773916238172,-152878.1550002,8.722e-05,2]
[408597578,1773916238189,-2027.42760257,8.722e-05,2]
[408597585,1773916242607,-1189.45646289,8.722e-05,2]
[408597589,1773916245302,-1571.5705,8.722e-05,2]
[408597590,1773916245716,-505.00302328,8.722e-05,2]
[408597595,1773916316986,150.0,8.064e-05,2]
[408597596,1773916447957,2714.058583,7.945e-05,2]
[408597597,1773916456723,7135.951417,7.796e-05,2]
[408597598,1773916456745,1365.738583,7.796e-05,2]
[408597599,1773916475709,8634.271417,7.792e-05,2]
[408597600,1773916475729,10000.01,7.792e-05,2]
[408597601,1773916475748,1225.428583,7.792e-05,2]
[408597602,1773916493248,464.51265582,7.944e-05,2]
[408597603,1773916506377,151.0,7.944e-05,3]
[408597604,1773916507624,934.372946,7.945e-05,2]
[408597605,1773916560248,3904.39,7.682e-05,2]
[408597606,1773916581662,-541.0,8.095e-05,2]
[408597607,1773916591925,169.35,6.209e-05,2]
[408597608,1773916591964,1228.32,7.823e-05,2]
[408597609,1773916634162,3299.06439818,7.758e-05,2]
[408597610,1773916634185,1719.25560182,7.758e-05,2]
[408597612,1773916653722,200.0,8e-05,2]
[408597613,1773916662546,500.0,8.02e-05,2]
[408597614,1773916670278,500.0,8.02e-05,2]
[408597615,1773916678010,500.0,8.02e-05,2]
[408597616,1773916685976,154.62815875,8.02e-05,2]
[408597617,1773916688686,-959.0,8.095e-05,2]
[408597618,1773916703719,-250.0,8.147e-05,2]
[408597619,1773916718891,-200.0,8.2e-05,2]
[408597620,1773916734036,-307.0,8.268e-05,2]
[408597621,1773916741540,300.0,8.268e-05,2]
[408597622,1773916742436,300.0,8.268e-05,2]
[408597623,1773916746172,3934.15,7.917e-05,2]
[408597624,1773916750364,-5000.0,8.269e-05,2]
[408597625,1773916750466,-5000.0,8.269e-05,2]
[408597626,1773916750580,-3196.58745434,8.269e-05,2]
[408597627,1773916758506,3606.83509132,7.898e-05,2]
[408597628,1773916758527,5783.41490868,7.898e-05,2]
[408597629,1773916803291,220.0,8.382e-05,2]
[408597630,1773916805438,151.0,7.944e-05,3]
[408597631,1773916811146,158.0,7.944e-05,3]
[408597632,1773916851750,8349.95,7.771e-05,2]
[408597633,1773916903023,500.0,8.02e-05,2]
[408597634,1773916910773,500.0,8.02e-05,2]
[408597635,1773916918540,430.06,8.02e-05,2]
[408597636,1773916918564,69.94,8.02e-05,2]
[408597637,1773916926283,331.13185319,8.02e-05,2]
[408597638,1773916933983,500.0,8.02e-05,2]
[408597639,1773916941837,500.0,8.02e-05,2]
[408597640,1773916943137,2381.0,8.789e-05,5]
[408597641,1773917069907,1689.68,7.692e-05,2]
[408597642,1773917080410,1600.0,7.7e-05,2]
[408597643,1773917105619,158.0,7.944e-05,3]
[408597644,1773917134243,1852.42,7.673e-05,2]
[408597645,1773917170077,327.36,8.219e-05,2]
[408597647,1773917200277,-178.14232881,8.45e-05,2]
[408597648,1773917228496,242.97150567,8.45e-05,2]
[408597649,1773917228656,500.0,8.45e-05,2]
[408597650,1773917229707,3787.57849433,8.45e-05,2]
[408597651,1773917229731,4778.17706478,8.45e-05,2]
[408597652,1773917239984,282.59450799,8.45e-05,2]
[408597653,1773917248608,168.1627949,0.00012391,10]
[408597654,1773917254930,669.13395939,8.45e-05,2]
[408597655,1773917259053,151.0,8.45e-05,2]
[408597656,1773917269991,-71.85767119,8.45e-05,2]
[408597657,1773917270020,-500.0,8.505e-05,2]
[408597658,1773917274610,-1117.3214852,8.505e-05,2]
[408597659,1773917274735,-2234.6429704,8.505e-05,2]
[408597660,1773917274843,-4469.2859408,8.505e-05,2]
[408597661,1773917275222,-1061.4381184,8.505e-05,2]
[408597662,1773917275250,-151.0,8.505e-05,2]
[408597663,1773917285042,-300.0,8.516e-05,2]
[408597664,1773917300288,-661.4018,8.517e-05,2]
[408597665,1773917301324,-5885.3605359,8.517e-05,2]
[408597666,1773917301362,-4812.4935359,8.517e-05,2]
[408597667,1773917301401,-375.0229282,8.517e-05,2]
[408597668,1773917301429,-4143.8693,8.517e-05,2]
[408597669,1773917301469,-2500.0,8.517e-05,2]
[408597670,1773917315364,-383.46001581,8.517e-05,2]
[408597671,1773917330557,-1200.0,8.52e-05,2]
[408597672,1773917336294,6761.4828,8.517e-05,2]
[408597673,1773917342445,635.65,8.52e-05,2]
[408597674,1773917345755,-214.0,8.521e-05,2]
[408597675,1773917345782,-500.0,8.521e-05,2]
[408597676,1773917360928,-150.0,8.559e-05,2]
[408597677,1773917376191,-500.0,8.56e-05,2]
[408597678,1773917376292,-1602.8772,8.56e-05,2]
[408597679,1773917376324,-2391.53921015,8.56e-05,2]
[408597680,1773917376351,-5216.9315797,8.56e-05,2]
[408597681,1773917376433,-151.0,8.56e-05,2]
[408597682,1773917379226,-300.0,8.591e-05,2]
[408597683,1773917379256,-300.0,8.591e-05,2]
[408597684,1773917401107,300.0,8.592e-05,2]
[408597685,1773917401138,300.0,8.592e-05,2]
[408597686,1773917401168,1200.0,8.592e-05,2]
[408597687,1773917407869,158.0,8.591e-05,3]
[408597689,1773917431559,-500.0,8.593e-05,2]
[408597690,1773917431568,-500.0,8.593e-05,2]
[408597691,1773917431578,-500.0,8.593e-05,2]
[408597692,1773917431588,-500.0,8.593e-05,2]
[408597693,1773917431597,-502.94227375,8.593e-05,2]
[408597694,1773917431606,-500.0,8.593e-05,2]
[408597695,1773917431615,-500.0,8.593e-05,2]
[408597696,1773917431624,-221.0,8.593e-05,2]
[408597697,1773917431633,-5000.0,8.599e-05,2]
[408597698,1773917431642,-7422.71796421,8.606e-05,2]
[408597699,1773917431651,-1615.50913239,8.608e-05,2]
[408597700,1773917431660,-500.0,8.612e-05,2]
[408597701,1773917431670,-151.0,8.614e-05,2]
[408597702,1773917431679,-151.0,8.614e-05,2]
[408597703,1773917431688,-500.0,8.615e-05,2]
[408597704,1773917431697,-9552.16786547,8.615e-05,2]
[408597705,1773917431707,-151.0,8.615e-05,2]
[408597706,1773917431716,-150.99,8.615e-05,2]
[408597708,1773917431725,-150.99,8.615e-05,2]
[408597710,1773917431734,-1478.64,8.615e-05,2]
[408597712,1773917431743,-299.99,8.615e-05,2]
[408597713,1773917431752,-7461.76,8.615e-05,2]
[408597714,1773917431761,-499.99,8.615e-05,2]
[408597715,1773917431770,-999.99,8.615e-05,2]
[408597716,1773917431779,-1000.0,8.616e-05,2]
[408597717,1773917431788,-9999.99,8.616e-05,2]
[408597718,1773917431798,-9071.06,8.616e-05,2]
[408597719,1773917431808,-500.0,8.616e-05,2]
[408597720,1773917431817,-241.31710956,8.616e-05,2]
[408597721,1773917431826,-500.0,8.616e-05,2]
[408597722,1773917431835,-597.63415921,8.616e-05,2]
[408597723,1773917431845,-158.50607344,8.616e-05,2]
[408597725,1773917431855,-500.0,8.616e-05,2]
[408597727,1773917431864,-500.0,8.616e-05,2]
[408597729,1773917431873,-500.0,8.616e-05,2]
[408597731,1773917431882,-500.0,8.616e-05,2]
[408597732,1773917431891,-500.0,8.616e-05,2]
[408597733,1773917431900,-500.0,8.616e-05,2]
[408597734,1773917431910,-500.0,8.616e-05,2]
[408597735,1773917431919,-500.0,8.616e-05,2]
[408597736,1773917431930,-500.0,8.616e-05,2]
[408597737,1773917431940,-500.0,8.616e-05,2]
[408597738,1773917431950,-500.0,8.616e-05,2]
[408597739,1773917431960,-500.0,8.616e-05,2]
[408597740,1773917431969,-500.0,8.616e-05,2]
[408597741,1773917431978,-500.0,8.616e-05,2]
[408597742,1773917431987,-500.0,8.616e-05,2]
[408597743,1773917431996,-500.0,8.616e-05,2]
[408597744,1773917432005,-500.0,8.616e-05,2]
[408597745,1773917432015,-500.0,8.616e-05,2]
[408597746,1773917432025,-445.17473094,8.616e-05,2]
[408597747,1773917432035,-500.0,8.616e-05,2]
[408597748,1773917432044,-500.0,8.616e-05,2]
[408597749,1773917432054,-500.0,8.616e-05,2]
[408597750,1773917432063,-500.0,8.616e-05,2]
[408597751,1773917432072,-500.0,8.616e-05,2]
[408597752,1773917432081,-500.0,8.616e-05,2]
[408597753,1773917432090,-500.0,8.616e-05,2]
[408597754,1773917432099,-500.0,8.616e-05,2]
[408597755,1773917432108,-500.0,8.616e-05,2]
[408597756,1773917432117,-500.0,8.616e-05,2]
[408597757,1773917432128,-500.0,8.616e-05,2]
[408597758,1773917432136,-500.0,8.616e-05,2]
[408597759,1773917432146,-500.0,8.616e-05,2]
[408597760,1773917432155,-500.0,8.616e-05,2]
[408597761,1773917432164,-500.0,8.616e-05,2]
[408597762,1773917432173,-500.0,8.616e-05,2]
[408597763,1773917432182,-500.0,8.616e-05,2]
[408597764,1773917432190,-300.0,8.616e-05,2]
[408597765,1773917432200,-306.74285238,8.616e-05,2]
[408597766,1773917432209,-887.52,8.616e-05,2]
[408597767,1773917432220,-4233.955,8.616e-05,2]
[408597768,1773917432232,-167.81,8.616e-05,2]
[408597769,1773917432244,-202277.80566349,8.617e-05,2]
[408597770,1773917432493,-6847.72644587,8.617e-05,2]
[408597771,1773917432504,-12112.35474603,8.617e-05,2]
[408597772,1773917432514,-1405.4,8.617e-05,2]
[408597773,1773917432528,-452.09826808,8.617e-05,2]
[408597774,1773917436687,8200.01,8.517e-05,2]
[408597775,1773917436710,10000.01,8.517e-05,2]
[408597776,1773917436732,10000.01,8.517e-05,2]
[408597777,1773917436753,10000.01,8.517e-05,2]
[408597778,1773917436774,10000.01,8.517e-05,2]
[408597779,1773917436796,10000.01,8.517e-05,2]
[408597780,1773917436818,10000.01,8.517e-05,2]
[408597781,1773917436839,10000.01,8.517e-05,2]
[408597782,1773917436860,10000.01,8.517e-05,2]
[408597783,1773917436881,10000.01,8.517e-05,2]
[408597784,1773917437579,-298.2695,8.517e-05,2]
[408597785,1773917437589,-1788.82192689,8.617e-05,2]
[408597786,1773917437600,-19992.4103611,8.617e-05,2]
[408597791,1773917439744,-110909.15517712,8.617e-05,2]
[408597792,1773917440114,-7093.66951345,8.617e-05,2]
[408597793,1773917440169,-3648.431529,8.617e-05,2]
[408597795,1773917440181,-3338.84157373,8.617e-05,2]
[408597798,1773917442871,-19.79359211,8.617e-05,2]
[408597799,1773917442991,-2500.0,8.517e-05,2]
[408597805,1773917445449,-4653.599881,8.617e-05,2]
[408597806,1773917445555,-1357.8,8.617e-05,2]
[408597807,1773917445611,-11063.10643095,8.617e-05,2]
[408597808,1773917445665,-600.0,8.617e-05,2]
[408597809,1773917445928,-5000.01,8.617e-05,2]
[408597810,1773917446021,-10000.01,8.617e-05,2]
[408597812,1773917446146,-10000.01,8.617e-05,2]
[408597814,1773917446252,-10000.01,8.617e-05,2]
[408597815,1773917446351,-10000.01,8.617e-05,2]
[408597816,1773917446491,-10000.01,8.617e-05,2]
[408597817,1773917446605,-10000.01,8.617e-05,2]
[408597818,1773917446706,-10000.01,8.617e-05,2]
[408597819,1773917446862,-10000.01,8.617e-05,2]
[408597820,1773917446974,-10000.01,8.617e-05,2]
[408597821,1773917490976,3635.821,8.445e-05,2]
[408597822,1773917491115,168.569,8.445e-05,2]
[408597823,1773917502712,991.43,7.808e-05,2]
[408597824,1773917551682,2393.0,8.789e-05,5]
[408597825,1773917555852,200.0,7.77e-05,2]
[408597826,1773917587989,3115.34,7.846e-05,2]
[408597827,1773917597953,250.0,8.517e-05,2]
[408597828,1773917605042,1638.85,8.517e-05,2]
[408597829,1773917605066,10000.01,8.517e-05,2]
[408597831,1773917667987,500.0,7.768e-05,2]
[408597832,1773917697267,1834.04,7.746e-05,2]
[408597833,1773917706840,159.0,7.768e-05,3]
[408597834,1773917728591,10000.01,7.697e-05,2]
[408597835,1773917728613,10000.01,7.697e-05,2]
[408597836,1773917728641,7211.03,7.697e-05,2]
[408597874,1773917846213,350.0,0.00012575,10]
[408598017,1773917905119,-4282.11,7.691e-05,2]
[408598046,1773917920135,-742.2918,8.178e-05,2]
[408598071,1773917935387,-3805.26,8.219e-05,2]
[408598072,1773917935483,-2389.49,8.219e-05,2]
[408598139,1773918005005,159.0,7.746e-05,3]
[408598241,1773918091000,3679.818,8.345e-05,2]
[408598242,1773918091423,165.196,8.345e-05,2]
[408598244,1773918102696,500.0,7.696e-05,2]
[408598265,1773918156700,2390.0,8.563e-05,5]
[408598266,1773918181716,300.0,8.346e-05,2]
[408598267,1773918187455,300.0,8.346e-05,2]
[408598268,1773918194720,208.21,7.602e-05,2]
[408598271,1773918219151,1200.0,8.346e-05,2]
[408598272,1773918241350,300.0,8.346e-05,2]
[408598273,1773918249622,217.71,7.633e-05,2]
[408598278,1773918301180,300.0,8.346e-05,2]
[408598279,1773918301209,300.0,8.346e-05,2]
[408598280,1773918301242,1200.0,8.346e-05,2]
[408598284,1773918305045,500.0,8.247e-05,2]
[408598291,1773918311503,159.0,7.746e-05,3]
[408598292,1773918361363,300.0,8.346e-05,2]
[408598293,1773918361433,300.0,8.346e-05,2]
[408598294,1773918364365,229.076,8.346e-05,2]
[408598295,1773918364391,70.924,8.346e-05,2]
[408598299,1773918378621,2000.0,8.219e-05,2]
[408598305,1773918467017,500.0,8.247e-05,2]
[408598306,1773918511436,-500.0,8.347e-05,2]
[408598307,1773918511465,-500.0,8.347e-05,2]
[408598308,1773918511492,-500.0,8.347e-05,2]
[408598309,1773918511520,-500.0,8.347e-05,2]
[408598310,1773918511549,-500.0,8.347e-05,2]
[408598311,1773918511685,-500.0,8.347e-05,2]
[408598312,1773918511712,-500.0,8.347e-05,2]
[408598313,1773918511739,-500.0,8.347e-05,2]
[408598314,1773918511764,-213.19819377,8.347e-05,2]
[408598315,1773918511790,-250.0,8.347e-05,2]
[408598316,1773918511842,-0.01,8.347e-05,2]
[408598317,1773918511938,-1073.60361246,8.347e-05,2]
[408598318,1773918511972,-1073.62361246,8.347e-05,2]
[408598319,1773918511998,-2852.76277508,8.347e-05,2]
[408598320,1773918512048,-220.0,8.347e-05,2]
[408598321,1773918512079,-197.9368224,8.347e-05,2]
[408598322,1773918512105,-1382.8649,8.415e-05,2]
[408598323,1773918512164,-1398.4065552,8.415e-05,2]
[408598324,1773918512197,-546.5446552,8.415e-05,2]
[408598325,1773918512220,-3906.9206896,8.415e-05,2]
[408598326,1773918512267,-628.1322,8.415e-05,2]
[408598327,1773918512294,-197.93682238,8.431e-05,2]
[408598328,1773918512320,-429.37219179,8.454e-05,2]
[408598329,1773918512347,-150.0,8.492e-05,2]
[408598330,1773918512374,-500.0,8.493e-05,2]
[408598331,1773918512400,-500.0,8.493e-05,2]
[408598332,1773918512527,-500.0,8.493e-05,2]
[408598333,1773918512556,-333.74740353,8.493e-05,2]
[408598334,1773918512584,-313.87862379,8.493e-05,2]
[408598335,1773918512614,-500.0,8.493e-05,2]
[408598336,1773918512641,-500.0,8.493e-05,2]
[408598337,1773918512670,-204.75794536,8.493e-05,2]
[408598338,1773918512738,-295.24205464,8.493e-05,2]
[408598339,1773918512928,-204.75794536,8.51e-05,2]
[408598340,1773918512957,-295.24205464,8.51e-05,2]
[408598341,1773918512971,-4409.52589072,8.51e-05,2]
[408598342,1773918512989,-3656.22966839,8.51e-05,2]
[408598343,1773918512998,-500.0,8.51e-05,2]
[408598344,1773918513010,-669.13395939,8.51e-05,2]
[408598345,1773918513021,-151.0,8.51e-05,2]
[408598346,1773918513031,-23.64637222,8.514e-05,2]
[408598347,1773918514298,-174.29045016,8.514e-05,2]
[408598348,1773918514328,-500.0,8.514e-05,2]
[408598349,1773918514356,-473.51372327,8.514e-05,2]
[408598350,1773918514385,-500.0,8.514e-05,2]
[408598351,1773918514481,-1704.40165314,8.514e-05,2]
[408598352,1773918514500,-5000.01,8.514e-05,2]
[408598353,1773918514537,-1704.43165314,8.514e-05,2]
[408598354,1773918514566,-1591.14669372,8.514e-05,2]
[408598355,1773918514647,-164.07991877,8.514e-05,2]
[408598356,1773918514676,-193.64109384,8.514e-05,2]
[408598357,1773918514721,-4284.56797478,8.514e-05,2]
[408598358,1773918514767,-5000.01,8.514e-05,2]
[408598359,1773918514891,-715.41202522,8.514e-05,2]
[408598360,1773918514919,-442.52123557,8.514e-05,2]
[408598361,1773918514981,-2684.14347842,8.514e-05,2]
[408598362,1773918515007,-5000.01,8.514e-05,2]
[408598363,1773918515126,-2315.83652158,8.514e-05,2]
[408598364,1773918515163,-368.33695684,8.514e-05,2]
[408598365,1773918515221,-5000.01,8.514e-05,2]
[408598366,1773918515342,-368.36695684,8.514e-05,2]
[408598367,1773918515365,-4263.27608632,8.514e-05,2]
[408598368,1773918517842,-5000.01,8.514e-05,2]
[408598369,1773918517893,-2162.22,8.514e-05,2]
[408598370,1773918517921,-322.77,8.514e-05,2]
[408598371,1773918517959,-30.03,8.514e-05,2]
[408598372,1773918517984,-5000.01,8.514e-05,2]
[408598373,1773918518115,-0.03,8.514e-05,2]
[408598374,1773918518140,-4999.95,8.514e-05,2]
[408598375,1773918518198,-500.0,8.514e-05,2]
[408598376,1773918518227,-500.0,8.514e-05,2]
[408598377,1773918518257,-500.0,8.514e-05,2]
[408598378,1773918518286,-424.51747309,8.514e-05,2]
[408598379,1773918518402,-160.99,8.515e-05,2]
[408598380,1773918518451,-4678.03,8.515e-05,2]
[408598381,1773918518464,-5000.01,8.515e-05,2]
[408598382,1773918518509,-5000.01,8.515e-05,2]
[408598383,1773918518612,-5000.01,8.515e-05,2]
[408598384,1773918518710,-5000.01,8.515e-05,2]
[408598385,1773918518819,-5000.01,8.515e-05,2]
[408598386,1773918519139,1200.0,8.513e-05,2]
[408598387,1773918520366,-5000.01,8.515e-05,2]
[408598388,1773918520481,-5000.01,8.515e-05,2]
[408598389,1773918520584,-5000.01,8.515e-05,2]
[408598390,1773918520697,-5000.01,8.515e-05,2]
[408598391,1773918520800,-5000.01,8.515e-05,2]
[408598392,1773918520937,-5000.01,8.515e-05,2]